bitfinex/quotes_ETHUSD_20250815
["timestamp","ask_amount","ask_price","bid_price","bid_amount"]
[1755221483028,8.96513409,4594.6,4593.3,0.001]
[1755221483224,9.89143409,4594.6,4593.3,0.001]
[1755221483423,39.89143409,4594.6,4593.3,0.001]
[1755221483628,39.89143409,4594.6,4594.5,1e-08]
[1755221483849,40.35786999,4594.6,4594.5,1e-08]
[1755221484457,39.89143409,4594.6,4594.5,1e-08]
[1755221484613,40.35732169,4594.6,4594.5,1e-08]
[1755221484812,39.89143409,4594.6,4594.5,1e-08]
[1755221485636,2.1767049,4594.1,4593.3,0.001]
[1755221485859,38.7065049,4594.1,4593.3,0.001]
[1755221486161,39.6338049,4594.1,4593.3,0.001]
[1755221486962,39.1620049,4594.1,4593.3,0.001]
[1755221487468,39.6338049,4594.1,4593.3,0.001]
[1755221487763,2.17703661,4593.4,4593.3,0.001]
[1755221487962,38.70683661,4593.4,4593.3,0.001]
[1755221488163,5.28583661,4593.4,4593.3,0.001]
[1755221488368,8.70583661,4593.4,4593.3,0.001]
[1755221488670,9.16268262,4593.4,4593.3,0.001]
[1755221489252,6.98464601,4593.4,4593.3,0.001]
[1755221489454,6.419,4593.4,4593.3,0.001]
[1755221489659,3.419,4593.4,4593.3,0.4461]
[1755221491076,0.1088,4593.6,4593.4,0.55]
[1755221491241,0.4545,4595.2,4593.5,0.02176989]
[1755221491440,0.1088,4594.3,4593.6,0.55]
[1755221491635,3.419,4594.2,4593.6,0.55]
[1755221491851,3.0,4594.6,4593.8,0.55]
[1755221492065,3.1088,4594.4,4593.8,0.55]
[1755221492264,3.419,4594.5,4593.7,0.5539]
[1755221492265,3.42,4594.3,4593.7,0.4451]
[1755221492574,0.1088,4594.1,4593.7,0.4451]
[1755221493357,0.4545,4595.4,4593.8,0.9037]
[1755221493559,33.419,4595.3,4594.1,0.55]
[1755221493756,5.17624241,4595.1,4594.3,0.55]
[1755221493983,2.1764296,4594.7,4594.2,0.4451]
[1755221494279,5.59651536,4594.6,4593.9,0.55]
[1755221494485,3.42,4594.5,4594.0,0.4451]
[1755221494690,3.42,4594.4,4594.1,0.4451]
[1755221495046,3.42,4594.4,4593.7,0.4451]
[1755221495471,3.42,4594.4,4593.8,0.55]
[1755221495672,3.42,4594.4,4593.9,2.17679966]
[1755221495870,3.42,4594.4,4594.0,0.4451]
[1755221496080,3.42,4594.4,4593.8,0.55]
[1755221496081,3.419,4594.5,4594.1,0.4451]
[1755221496247,3.419,4594.5,4594.0,0.55]
[1755221496579,3.419,4594.5,4594.3,0.55]
[1755221496772,2.1762251,4595.2,4594.4,0.4451]
[1755221496976,2.63057779,4595.5,4594.4,0.4451]
[1755221496977,3.0,4595.0,4594.4,0.4451]
[1755221497159,3.0,4594.8,4594.4,0.4451]
[1755221497345,0.4545,4594.7,4593.8,0.55]
[1755221497544,2.17646802,4594.6,4593.8,0.55]
[1755221497745,2.17656676,4594.4,4593.8,0.55]
[1755221498054,3.418,4594.5,4593.3,0.9961]
[1755221498258,3.418,4594.4,4593.6,0.55]
[1755221498473,3.418,4594.4,4593.8,0.55]
[1755221498945,3.02356505,4594.7,4593.8,0.55]
[1755221498946,0.39263,4594.7,4593.8,0.55]
[1755221499140,3.417,4594.6,4594.0,0.55]
[1755221499978,3.417,4594.6,4593.9,0.55]
[1755221500191,2.17623524,4595.1,4594.2,0.55]
[1755221500395,3.0,4594.9,4594.2,0.55]
[1755221500762,3.0,4594.9,4594.1,0.55]
[1755221500994,0.36753208,4594.8,4593.5,0.4451]
[1755221501193,2.63092637,4594.7,4593.6,0.55]
[1755221501366,2.63092637,4594.7,4593.2,0.4461]
[1755221501367,3.0,4594.5,4593.2,0.4461]
[1755221501573,2.17679135,4594.0,4593.2,0.4461]
[1755221501780,3.416,4593.9,4593.2,0.4461]
[1755221501974,3.416,4593.9,4593.2,0.001]
[1755221502173,2.17696165,4593.6,4593.2,0.001]
[1755221502375,3.416,4593.5,4593.2,0.001]
[1755221502784,0.4545,4593.4,4593.2,0.001]
[1755221503309,3.416,4593.5,4593.2,0.001]
[1755221503521,0.1088,4593.4,4593.2,0.001]
[1755221503863,2.74033661,4593.4,4593.2,0.001]
[1755221504587,0.5633,4593.4,4593.2,0.001]
[1755221504779,3.9763,4593.4,4593.2,0.001]
[1755221505298,6.15333661,4593.4,4593.2,0.001]
[1755221505724,9.62513661,4593.4,4593.2,0.001]
[1755221505998,42.38573724,4593.4,4593.2,0.001]
[1755221506195,40.09173724,4593.4,4593.2,0.001]
[1755221507369,9.98293724,4593.4,4593.2,0.001]
[1755221507599,39.98293724,4593.4,4593.2,0.001]
[1755221507804,39.51113724,4593.4,4590.7,0.001]
[1755221508008,39.51113724,4593.4,4588.8,0.0744]
[1755221508009,3.0,4590.8,4588.8,0.0744]
[1755221508172,3.0,4590.8,4587.3,0.4451]
[1755221508173,19.27489311,4588.9,4587.3,0.4451]
[1755221508374,3.0,4587.9,4587.5,0.11384555]
[1755221508679,0.20293645,4587.8,4587.5,0.11384555]
[1755221508875,0.77826898,4587.6,4587.5,0.4451]
[1755221509177,1.65016105,4587.6,4586.8,0.1185906]
[1755221509392,0.58179753,4587.2,4585.8,3.0]
[1755221509571,2.17947888,4588.3,4585.8,3.0]
[1755221509572,0.87189207,4587.1,4585.9,0.02180597]
[1755221509773,4.55653796,4588.6,4586.0,0.55583397]
[1755221509774,0.87189207,4587.0,4586.0,0.55583397]
[1755221510104,0.6693937,4586.9,4586.1,3.498]
[1755221510305,1.04825478,4586.8,4586.1,3.498]
[1755221510471,0.46645725,4586.7,4586.1,3.498]
[1755221510666,0.46645725,4586.6,4586.1,3.498]
[1755221510893,0.46645725,4586.5,4586.2,0.3498]
[1755221511094,0.66808814,4586.4,4586.2,0.3498]
[1755221511410,0.58179753,4586.9,4586.3,4.44328]
[1755221511718,1.24658055,4586.8,4586.4,3.9513]
[1755221511872,0.66478302,4586.7,4586.5,0.5687]
[1755221512073,0.66478302,4586.6,4586.5,2.18028998]
[1755221512294,0.66478302,4586.6,4586.5,2.74811898]
[1755221512577,0.66478302,4586.6,4586.5,3.31681898]
[1755221512904,0.66478302,4586.6,4586.5,1.136529]
[1755221513107,0.46355846,4586.6,4586.5,1.136529]
[1755221513314,0.46355846,4586.6,4586.5,1.021129]
[1755221513516,0.46355846,4586.6,4586.2,0.4533]
[1755221513681,2.18035932,4586.4,4585.7,0.4533]
[1755221513878,0.57876911,4586.0,4585.8,0.39493]
[1755221514073,0.46355846,4585.9,4585.8,0.39493]
[1755221514276,0.57876911,4586.6,4586.2,2.18040797]
[1755221514476,0.57876911,4586.6,4585.8,0.39493]
[1755221514477,0.4624952,4586.5,4586.3,0.2180408]
[1755221514675,0.4624952,4586.4,4586.2,2.18043832]
[1755221514905,0.77826898,4586.9,4586.2,2.18043832]
[1755221514906,0.4624952,4586.3,4586.2,2.18043832]
[1755221515296,0.57876911,4586.8,4586.3,2.18040397]
[1755221515497,0.66286178,4586.7,4586.3,2.61649998]
[1755221515694,0.66286178,4586.6,4586.4,0.4533]
[1755221516018,0.57876911,4586.9,4586.5,3.9483]
[1755221516198,0.66286698,4586.8,4586.7,2.18021671]
[1755221516531,1.24163609,4586.8,4586.7,0.4533]
[1755221516830,0.66286698,4586.8,4586.7,0.4533]
[1755221517036,0.66271314,4586.8,4586.7,0.4533]
[1755221517400,0.66271314,4586.8,4586.7,0.1088]
[1755221517597,1.24148225,4586.8,4586.7,0.1088]
[1755221517797,2.18021671,4586.7,4586.2,3.495]
[1755221518011,0.66271314,4586.6,4586.5,0.1088]
[1755221518206,0.66271314,4586.6,4586.5,0.6588]
[1755221518435,0.46223547,4586.6,4586.5,3.29241178]
[1755221518633,0.46223547,4586.6,4586.5,4.22414201]
[1755221519200,1.35502863,4587.4,4586.5,4.22414201]
[1755221519400,1.03784177,4587.3,4587.2,2.72997907]
[1755221519631,0.46108212,4587.3,4587.2,6.67627907]
[1755221519794,0.77826898,4588.1,4588.0,0.55]
[1755221519995,0.46095813,4588.1,4588.0,0.55]
[1755221520561,0.57607034,4588.8,4588.7,2.72926645]
[1755221520706,0.57607034,4589.0,4588.8,0.55]
[1755221520913,1.03682557,4588.9,4588.8,0.55]
[1755221521138,1.03682557,4588.9,4588.8,2.72921896]
[1755221521441,1.03682557,4588.9,4588.8,0.55]
[1755221521442,0.46075523,4588.9,4588.8,0.55]
[1755221522531,0.46075523,4588.9,4588.8,2.75101114]
[1755221522749,0.46075523,4588.9,4588.8,0.6588]
[1755221523151,0.46075523,4588.9,4588.8,2.83801896]
[1755221524045,0.46075523,4588.9,4588.8,3.29131896]
[1755221524455,0.46075523,4588.9,4588.8,2.83801896]
[1755221525446,0.46075523,4588.9,4588.8,4.14255033]
[1755221525648,0.57607034,4589.6,4589.5,2.72888658]
[1755221525813,0.46147414,4589.6,4589.5,6.66918658]
[1755221526214,0.46147414,4589.6,4589.5,7.56487864]
[1755221527449,0.57607034,4590.2,4589.8,0.55]
[1755221527676,0.46215175,4590.1,4590.0,2.72860241]
[1755221528194,0.46215175,4590.1,4590.0,2.83740241]
[1755221529145,0.46215175,4590.1,4590.0,0.6588]
[1755221529545,0.92525175,4590.1,4590.0,0.1088]
[1755221529766,0.92525175,4590.1,4589.5,3.481]
[1755221529767,1.51538396,4590.1,4589.8,0.1088]
[1755221530074,0.77826898,4590.2,4589.0,0.001]
[1755221530075,0.77826898,4589.9,4589.0,0.001]
[1755221530272,0.57884013,4589.2,4589.1,0.1088]
[1755221530449,0.46215175,4589.2,4589.1,0.1088]
[1755221530649,1.36525175,4589.2,4589.1,0.1088]
[1755221530860,1.36525175,4589.2,4589.1,0.6588]
[1755221531065,1.36525175,4589.2,4589.1,0.1088]
[1755221531244,2.1370386,4589.2,4589.1,0.1088]
[1755221532348,1.36525175,4589.2,4589.1,0.1088]
[1755221533279,1.69963915,4589.2,4589.1,0.1088]
[1755221533579,0.92525175,4589.2,4589.1,0.1088]
[1755221533899,0.46215175,4589.2,4589.1,0.1088]
[1755221534477,0.92525175,4589.2,4589.1,0.1088]
[1755221534688,2.53265522,4589.2,4589.1,0.6588]
[1755221535193,1.62955522,4589.2,4589.1,2.8378765]
[1755221535397,1.62955522,4589.2,4589.1,0.6588]
[1755221535693,0.46215175,4589.2,4589.1,0.6588]
[1755221535903,1.62955522,4589.2,4589.1,0.6588]
[1755221536062,0.46215175,4589.2,4589.1,2.8378765]
[1755221536262,1.62955522,4589.2,4589.1,2.8378765]
[1755221536571,0.46215175,4589.2,4589.1,2.8388765]
[1755221537894,0.46215175,4589.2,4589.1,0.6598]
[1755221538065,2.09265522,4589.2,4589.1,0.6598]
[1755221538267,0.46215175,4589.2,4589.1,2.8388765]
[1755221538474,1.24077361,4589.2,4589.1,3.2921765]
[1755221538799,0.46215175,4589.2,4589.1,3.6893721]
[1755221540461,0.44,4590.9,4589.7,2.72879164]
[1755221540462,0.58390757,4589.8,4589.7,2.72879164]
[1755221540663,0.58390757,4589.8,4589.7,6.20079164]
[1755221540664,0.46710635,4589.8,4589.7,6.20079164]
[1755221540899,0.46710635,4589.8,4589.7,6.30959164]
[1755221541999,0.46710635,4589.8,4589.7,7.65056718]
[1755221543288,0.46710635,4589.8,4589.7,6.30759164]
[1755221543680,0.46710635,4589.8,4589.7,0.1088]
[1755221543877,1.95951392,4589.8,4589.7,3.5768]
[1755221544082,1.95951392,4589.8,4589.7,4.1268]
[1755221544300,1.95951392,4589.8,4589.7,6.30559164]
[1755221544504,1.95951392,4589.8,4589.7,0.6588]
[1755221544804,1.64941993,4589.8,4589.3,3.5768]
[1755221544974,0.58433756,4589.5,4589.4,0.55]
[1755221545314,1.95994391,4589.5,4589.4,0.55]
[1755221545529,1.05144391,4589.5,4589.4,0.55]
[1755221545814,1.05144391,4589.5,4589.4,2.72893406]
[1755221546366,0.46710635,4589.5,4589.4,2.72893406]
[1755221546774,0.46710635,4589.5,4589.4,3.17573406]
[1755221547017,0.46710635,4589.5,4589.4,2.72893406]
[1755221547897,0.46710635,4589.5,4589.4,3.28453406]
[1755221548104,0.46710635,4589.5,4589.4,6.30173406]
[1755221548273,0.46710635,4589.5,4589.4,6.74853406]
[1755221548716,0.46710635,4589.5,4589.4,6.30173406]
[1755221549277,1.05144391,4589.5,4589.4,6.30173406]
[1755221549609,0.46710635,4589.5,4589.4,6.30173406]
[1755221552171,1.37560635,4589.5,4589.4,0.1088]
[1755221552378,1.57160074,4589.5,4589.4,3.457]
[1755221552697,0.46710635,4589.5,4589.4,5.74473406]
[1755221552869,1.05378294,4589.5,4589.4,6.29473406]
[1755221553716,0.46710635,4589.5,4589.4,6.29473406]
[1755221554412,0.46910635,4589.5,4589.4,6.29473406]
[1755221555171,1.37760635,4589.5,4589.4,4.1148]
[1755221555421,1.37760635,4589.5,4589.4,6.29373406]
[1755221555719,0.94660635,4589.5,4589.4,6.29373406]
[1755221556370,1.37760635,4589.5,4589.1,0.001]
[1755221556574,0.89810635,4589.4,4589.2,3.454]
[1755221556770,1.37560635,4589.3,4589.2,3.454]
[1755221556975,1.37560635,4589.3,4589.2,4.004]
[1755221557895,1.37560635,4589.3,4589.2,0.55]
[1755221558085,1.57203464,4589.3,4589.2,0.55]
[1755221558607,2.15871123,4589.3,4589.1,0.001]
[1755221558805,1.37560635,4589.2,4589.1,0.001]
[1755221559006,1.96228294,4589.2,4589.1,0.001]
[1755221559398,1.37560635,4589.2,4589.1,0.001]
[1755221559600,1.60255747,4589.2,4589.1,0.001]
[1755221559796,1.17155747,4589.2,4589.1,0.001]
[1755221560226,1.17155747,4589.2,4589.1,0.551]
[1755221560402,0.46710635,4589.2,4589.1,0.551]
[1755221561278,0.46710635,4589.2,4589.1,2.75186726]
[1755221561609,0.002,4589.5,4589.3,2.72898154]
[1755221561824,0.47151817,4589.5,4589.4,3.452]
[1755221562023,0.4795,4589.5,4589.4,3.452]
[1755221562202,0.94901817,4589.5,4589.4,3.452]
[1755221562394,0.9105,4589.5,4589.2,0.55]
[1755221562581,0.9085,4589.4,4589.2,0.55]
[1755221562889,0.002,4589.5,4589.4,2.72893406]
[1755221563099,0.002,4589.5,4589.4,6.17893406]
[1755221563635,0.4795,4589.5,4589.4,4.0]
[1755221563915,0.9105,4589.5,4589.4,4.0]
[1755221564412,0.9105,4589.5,4589.4,6.17893406]
[1755221564720,0.4795,4589.5,4589.4,6.17893406]
[1755221566215,0.9105,4589.5,4589.4,0.55]
[1755221567516,0.4795,4589.5,4589.4,0.55]
[1755221569616,0.002,4589.5,4589.4,2.83773406]
[1755221569800,0.002,4589.5,4589.4,4.13100899]
[1755221570202,0.002,4589.5,4589.4,4.15279833]
[1755221570406,0.002,4589.5,4589.4,4.24640899]
[1755221571500,0.002,4590.0,4589.9,2.7286967]
[1755221571705,0.002,4590.0,4589.9,6.2794967]
[1755221571889,0.002,4590.0,4589.9,7.59912328]
[1755221575721,0.002,4590.0,4589.9,2.8374967]
[1755221575917,0.4955,4590.0,4589.9,6.2734967]
[1755221576310,0.4955,4590.0,4589.9,2.8374967]
[1755221576518,0.933,4590.0,4589.9,6.2734967]
[1755221576751,0.933,4590.0,4589.9,3.436]
[1755221577343,0.933,4590.0,4589.9,3.986]
[1755221577554,0.933,4590.0,4589.9,3.436]
[1755221577710,0.933,4590.0,4589.6,0.1088]
[1755221577913,1.25303745,4589.9,4589.5,3.435]
[1755221578112,0.931,4589.8,4589.6,0.55]
[1755221578312,0.931,4589.8,4589.3,0.1088]
[1755221578512,0.931,4589.7,4589.1,0.1098]
[1755221578740,0.931,4589.7,4589.1,0.001]
[1755221578952,0.1088,4589.5,4589.1,0.001]
[1755221579249,34.365,4589.4,4589.0,0.001]
[1755221579446,2.17942817,4588.4,4587.4,2.18088149]
[1755221579636,2.17942599,4588.4,4587.4,0.001]
[1755221579834,0.931,4588.3,4587.6,2.17978465]
[1755221580023,0.4375,4588.2,4587.4,0.001]
[1755221580427,0.4375,4588.2,4587.6,2.1797887]
[1755221580649,0.4375,4588.2,4587.4,0.001]
[1755221580650,0.4375,4588.2,4587.4,2.18084237]
[1755221580851,0.4375,4588.2,4587.4,0.001]
[1755221581149,5.17964613,4588.0,4587.4,0.001]
[1755221581358,3.0,4588.0,4587.4,0.001]
[1755221581565,0.58667659,4588.8,4587.4,0.001]
[1755221581566,0.46910747,4588.4,4588.2,2.17950127]
[1755221581858,0.58667659,4589.1,4588.2,0.55]
[1755221581859,0.4935,4588.8,4588.2,0.55]
[1755221582152,2.17947844,4588.3,4587.5,3.444]
[1755221582453,1.14894784,4588.2,4587.4,0.001]
[1755221582653,0.931,4588.2,4587.4,0.001]
[1755221582842,0.931,4588.1,4587.4,0.001]
[1755221583011,3.11055502,4588.1,4587.4,0.001]
[1755221583219,0.931,4588.0,4587.4,0.001]
[1755221583717,0.931,4588.0,4587.4,0.551]
[1755221584225,17.10068884,4589.5,4587.4,0.551]
[1755221584226,0.4375,4588.8,4588.1,0.55]
[1755221584428,0.34375,4588.7,4588.3,2.17945592]
[1755221584628,0.4375,4589.1,4587.9,0.57179646]
[1755221584849,0.931,4589.1,4587.9,0.57179646]
[1755221585037,0.931,4589.1,4587.9,0.55]
[1755221585254,0.931,4589.1,4588.5,2.17935873]
[1755221585427,0.931,4589.1,4588.4,0.55]
[1755221585627,0.931,4589.0,4588.4,0.55]
[1755221585831,0.4375,4588.9,4588.2,0.55]
[1755221586113,0.4935,4589.0,4588.5,0.55]
[1755221586320,0.931,4588.9,4588.4,0.55]
[1755221586751,0.931,4588.8,4588.0,0.55]
[1755221586956,0.931,4588.8,4588.4,0.55]
[1755221587127,0.931,4589.4,4588.4,0.02179408]
[1755221587327,0.931,4589.4,4588.6,0.55]
[1755221587544,0.931,4589.4,4588.8,0.55]
[1755221587862,0.931,4589.4,4588.3,2.17944123]
[1755221587863,2.17898154,4589.3,4588.3,2.17944123]
[1755221588053,2.1790962,4589.1,4588.2,0.55]
[1755221588462,0.931,4589.0,4588.0,0.55]
[1755221588763,0.4935,4589.0,4588.5,0.55]
[1755221589062,0.4935,4589.0,4588.4,2.17940749]
[1755221589266,0.1088,4589.0,4588.5,0.55]
[1755221589546,0.1088,4589.0,4588.5,2.72935888]
[1755221589916,0.1088,4589.0,4588.5,0.55]
[1755221590123,0.1088,4589.0,4588.6,0.02179313]
[1755221590344,0.4935,4589.6,4588.8,0.55]
[1755221590345,0.1088,4589.4,4588.8,0.55]
[1755221590652,0.27811885,4589.3,4588.8,0.55]
[1755221590859,0.1088,4589.4,4588.8,0.55]
[1755221591249,0.1088,4589.4,4589.1,0.55]
[1755221591446,0.1088,4589.4,4589.1,2.72905902]
[1755221591761,0.1088,4589.4,4589.3,0.55]
[1755221592052,0.4375,4589.8,4589.0,2.72911839]
[1755221592220,0.1088,4589.6,4589.0,0.6588]
[1755221592416,0.1088,4589.8,4589.3,2.17894578]
[1755221592632,0.002,4590.0,4589.6,0.55]
[1755221592817,0.3933,4589.9,4589.6,0.55]
[1755221593263,0.002,4590.0,4589.7,0.02178791]
[1755221593440,0.002,4590.0,4589.8,0.55]
[1755221593940,0.002,4590.0,4589.7,0.55]
[1755221594347,0.931,4589.9,4589.2,3.443]
[1755221594653,0.1088,4589.8,4589.5,0.55]
[1755221594960,0.002,4590.0,4589.2,3.443]
[1755221595263,0.002,4590.0,4589.7,0.55]
[1755221595564,0.002,4590.0,4589.3,0.55]
[1755221595729,0.002,4590.0,4589.5,0.55]
[1755221596364,0.002,4590.0,4589.6,0.55]
[1755221597526,0.002,4590.0,4589.3,2.72894939]
[1755221597746,0.4395,4590.0,4589.3,0.55]
[1755221597946,0.4395,4590.0,4589.4,2.1789249]
[1755221598539,0.4395,4590.0,4589.3,2.72897295]
[1755221598856,0.75065197,4590.0,4589.4,2.17892446]
[1755221599157,0.4395,4590.0,4589.4,2.17892446]
[1755221599358,0.4395,4590.0,4589.3,2.72897404]
[1755221600258,0.4395,4590.0,4589.4,2.17892749]
[1755221600624,0.002,4590.0,4589.6,0.55]
[1755221600926,0.002,4590.0,4589.5,0.55]
[1755221601149,0.931,4589.9,4589.5,0.55]
[1755221601626,0.9197,4589.8,4589.3,0.55]
[1755221601830,0.9197,4589.7,4589.3,0.55]
[1755221602031,0.462,4589.7,4589.3,0.55]
[1755221602360,0.462,4589.7,4587.8,0.654772]
[1755221602361,3.9197,4589.6,4588.6,3.445]
[1755221602538,0.43817,4589.5,4588.7,0.55]
[1755221602901,0.9197,4589.4,4588.6,3.445]
[1755221603028,0.9197,4589.4,4588.7,0.55]
[1755221604743,0.9197,4589.4,4588.6,0.55]
[1755221605056,0.9197,4589.4,4588.6,0.6588]
[1755221605057,0.1088,4589.2,4588.6,0.6588]
[1755221606245,0.1088,4589.2,4588.6,2.83810078]
[1755221606842,0.1088,4589.2,4588.6,0.6588]
[1755221607271,0.1088,4589.2,4588.6,2.83810238]
[1755221607768,0.1088,4589.2,4588.8,0.55]
[1755221607969,0.1088,4589.2,4588.8,2.72921722]
[1755221608171,0.1088,4589.2,4588.8,0.55]
[1755221608470,0.1088,4589.2,4588.7,0.55]
[1755221609462,0.1088,4589.2,4588.7,0.33057079]
[1755221609663,0.58867659,4590.4,4589.9,0.55]
[1755221609664,0.1088,4590.1,4589.9,0.55]
[1755221609888,0.1088,4590.1,4589.1,0.1088]
[1755221609889,0.1088,4590.1,4589.8,0.55]
[1755221610183,0.1088,4590.1,4589.8,2.72872901]
[1755221610479,0.002,4590.4,4589.8,2.72872901]
[1755221610679,0.1088,4590.3,4589.8,0.55]
[1755221611385,0.1088,4590.3,4589.9,2.1786967]
[1755221611589,0.002,4590.4,4589.9,2.85928366]
[1755221611751,0.002,4590.4,4589.9,3.82168366]
[1755221612255,0.002,4590.4,4589.9,3.7998967]
[1755221612584,0.002,4590.4,4589.9,3.3050967]
[1755221612788,0.002,4590.4,4589.9,3.7998967]
[1755221613088,0.002,4590.4,4589.9,7.2348967]
[1755221613285,0.002,4590.4,4589.9,6.2724967]
[1755221613765,0.002,4590.4,4589.9,6.7400967]
[1755221615686,0.002,4590.4,4589.9,7.2348967]
[1755221615993,0.002,4590.4,4589.9,6.7400967]
[1755221616698,0.002,4590.4,4589.9,6.2724967]
[1755221618506,0.002,4590.4,4589.9,6.7400967]
[1755221619665,0.002,4590.4,4589.9,6.2724967]
[1755221622191,0.9217,4590.0,4589.9,0.1088]
[1755221622777,0.9217,4590.0,4589.6,0.55]
[1755221623082,0.9197,4589.9,4589.6,0.55]
[1755221623463,0.002,4590.0,4589.6,0.55]
[1755221623464,0.9197,4589.8,4589.6,0.55]
[1755221623665,0.002,4590.0,4589.6,0.55]
[1755221623873,0.9197,4589.8,4589.6,0.55]
[1755221624193,0.9197,4589.8,4589.4,2.17892942]
[1755221624194,0.4577,4589.7,4589.4,3.422]
[1755221624394,0.002,4590.0,4589.6,0.55]
[1755221624576,0.1108,4590.0,4589.6,0.55]
[1755221625172,0.1108,4590.0,4589.5,0.55]
[1755221625476,1.0305,4590.0,4589.5,0.55]
[1755221626466,1.0305,4590.0,4589.5,2.72886994]
[1755221626862,0.1108,4590.0,4589.7,0.55]
[1755221627599,0.1108,4590.0,4589.5,0.1088]
[1755221627790,0.5685,4590.0,4589.5,0.6588]
[1755221627989,1.0305,4590.0,4589.5,0.6588]
[1755221628701,1.0305,4590.0,4589.6,0.55]
[1755221628702,0.1108,4590.0,4589.6,0.55]
[1755221629011,0.1108,4590.0,4589.5,0.6588]
[1755221629012,0.002,4590.0,4589.8,2.7287301]
[1755221629168,0.002,4590.0,4589.8,0.6588]
[1755221629368,0.002,4590.0,4589.8,2.83753194]
[1755221629570,0.002,4590.0,4589.8,0.6588]
[1755221630787,0.002,4590.0,4589.9,2.7286967]
[1755221631002,0.002,4590.0,4589.9,4.20342533]
[1755221631200,0.002,4590.0,4589.9,3.3050967]
[1755221631508,0.002,4590.0,4589.9,2.8374967]
[1755221631692,0.002,4590.0,4589.9,0.6588]
[1755221631895,0.002,4590.0,4589.9,0.55]
[1755221632204,0.9222,4590.0,4589.9,0.55]
[1755221632572,0.4784,4590.0,4589.9,0.55]
[1755221633102,0.9222,4590.0,4589.9,0.55]
[1755221633871,0.002,4590.0,4589.9,0.55]
[1755221634677,0.002,4590.0,4589.9,2.7286967]
[1755221635116,0.002,4590.0,4589.9,2.8374967]
[1755221635699,0.002,4590.0,4589.9,0.6588]
[1755221636379,0.002,4590.0,4589.9,0.55]
[1755221636578,0.9222,4590.0,4589.9,0.55]
[1755221637114,0.1088,4590.2,4590.0,0.55]
[1755221637284,0.1088,4590.2,4589.7,0.55]
[1755221637615,0.4764,4590.1,4589.7,0.55]
[1755221639307,0.9202,4590.1,4589.7,0.55]
[1755221640315,0.4764,4590.1,4589.7,2.72878795]
[1755221640515,0.1088,4590.2,4589.8,3.416]
[1755221640716,0.1088,4590.2,4589.9,0.57178696]
[1755221640885,0.1088,4590.2,4590.0,0.55]
[1755221641078,0.002,4590.4,4590.2,0.55]
[1755221641284,0.002,4590.4,4590.1,5.59460177]
[1755221641285,0.002,4590.4,4590.3,3.54341703]
[1755221641709,0.002,4590.4,4590.3,4.00431703]
[1755221642481,0.002,4590.4,4590.3,3.54341703]
[1755221642678,0.002,4590.4,4590.3,2.83730685]
[1755221642953,0.002,4590.4,4590.3,6.25330685]
[1755221643614,0.002,4590.4,4590.3,4.0748]
[1755221643815,0.002,4590.4,4590.3,0.6588]
[1755221644129,0.002,4590.4,4590.3,4.0738]
[1755221645089,0.002,4590.4,4590.3,0.6588]
[1755221645292,0.9222,4590.4,4590.3,0.6588]
[1755221645489,0.9222,4590.4,4590.3,0.55]
[1755221645686,0.9222,4590.4,4589.5,0.0712]
[1755221645687,1.23265486,4590.4,4589.5,0.0712]
[1755221645993,0.1088,4590.2,4589.6,3.5238]
[1755221646210,0.1088,4590.2,4589.6,3.415]
[1755221646526,0.1088,4590.2,4589.5,0.0712]
[1755221646527,0.9202,4590.1,4589.5,3.4862]
[1755221647089,0.9202,4590.1,4589.6,0.55]
[1755221647418,0.9202,4590.0,4589.6,0.55]
[1755221647788,0.15001767,4590.1,4589.6,0.55]
[1755221647789,0.9202,4589.9,4589.6,0.55]
[1755221648090,0.4764,4589.8,4589.6,0.55]
[1755221648403,0.4764,4589.8,4589.5,0.0712]
[1755221648404,0.1088,4589.7,4589.5,0.0712]
[1755221648935,0.4764,4589.6,4589.5,0.6212]
[1755221649100,0.1088,4589.7,4589.6,0.55]
[1755221649299,0.1088,4589.7,4589.5,0.0712]
[1755221649500,2.17883911,4589.6,4589.5,0.0712]
[1755221649697,2.89355119,4589.6,4589.5,0.0712]
[1755221649896,6.56821581,4589.6,4589.5,0.0712]
[1755221651340,4.3893767,4589.6,4589.5,0.0712]
[1755221651698,6.56821581,4589.6,4589.5,0.0712]
[1755221652504,36.56821581,4589.6,4589.5,0.0712]
[1755221653836,37.34683767,4589.6,4589.5,0.0712]
[1755221654207,36.56821581,4589.6,4589.5,0.0712]
[1755221654809,39.98321581,4589.6,4589.5,0.0712]
[1755221656823,40.76183767,4589.6,4589.5,0.0712]
[1755221657022,2.1790765,4589.1,4588.5,0.001]
[1755221657247,39.72538258,4589.1,4589.0,1e-08]
[1755221657450,40.52906106,4589.1,4589.0,1e-08]
[1755221657850,2.17955144,4588.1,4588.0,0.001]
[1755221658053,38.87445566,4588.1,4588.0,0.001]
[1755221658225,40.37263236,4588.1,4588.0,0.001]
[1755221658773,40.37263236,4588.1,4588.0,1e-08]
[1755221658956,41.15328692,4588.1,4588.0,1e-08]
[1755221659265,40.37263236,4588.1,4588.0,1e-08]
[1755221659466,40.48116208,4588.1,4588.0,1e-08]
[1755221660336,41.06505601,4588.1,4588.0,1e-08]
[1755221660525,40.48116208,4588.1,4588.0,1e-08]
[1755221661023,40.48116208,4588.1,4586.5,0.001]
[1755221661024,2.17978899,4587.6,4586.5,0.001]
[1755221661224,2.18026424,4586.6,4586.5,0.001]
[1755221661424,38.59626424,4586.6,4586.5,0.001]